bitfinex-derivatives/quotes_BTCF0:USTF0_20241117
["timestamp","ask_amount","ask_price","bid_price","bid_amount"]
[1731840738436,0.00275497,91200.0,91199.0,2.44679593]
[1731840738636,0.05757597,91200.0,91199.0,2.39197393]
[1731840738846,0.05757597,91200.0,91199.0,1.94913393]
[1731840739049,0.05757597,91200.0,91199.0,2.03113393]
[1731840740132,0.05757597,91200.0,91199.0,1.6461468]
[1731840741133,0.05757597,91200.0,91199.0,1.64614617]
[1731840751751,0.05757597,91200.0,91199.0,1.97479869]
[1731840751953,0.05757597,91200.0,91199.0,1.64614617]
[1731840752355,0.05757597,91200.0,91199.0,1.97479869]
[1731840753051,0.05757597,91200.0,91199.0,2.35876213]
[1731840754155,0.05757597,91200.0,91199.0,2.3429889]
[1731840754346,0.05757597,91200.0,91199.0,2.03010983]
[1731840756943,0.05632761,91200.0,91199.0,2.03010983]
[1731840757258,0.03288723,91200.0,91199.0,2.35907556]
[1731840757557,0.03288723,91200.0,91199.0,2.35907557]
[1731840758552,0.03288723,91200.0,91199.0,1.97511213]
[1731840759146,0.03288723,91200.0,91199.0,2.35833449]
[1731840759850,0.03288723,91200.0,91199.0,1.97511213]
[1731840760053,0.03288723,91200.0,91199.0,2.27611661]
[1731840760261,0.08752165,91200.0,91199.0,0.01577346]
[1731840760751,0.21860342,91200.0,91199.0,0.27896438]
[1731840760959,0.21868896,91200.0,91199.0,0.01577346]
[1731840761152,0.185782,91200.0,91197.0,0.26319092]
[1731840761353,0.054822,91199.0,91198.0,0.01577473]
[1731840761762,0.18596958,91199.0,91198.0,0.01577473]
[1731840762060,0.054822,91199.0,91198.0,0.27896565]
[1731840762449,0.054822,91199.0,91198.0,0.01577473]
[1731840762862,0.18596958,91199.0,91198.0,0.01577473]
[1731840763264,0.054822,91199.0,91198.0,0.01577473]
[1731840763561,0.18596958,91199.0,91198.0,0.01577473]
[1731840763764,0.054822,91199.0,91198.0,0.01577473]
[1731840763965,0.185782,91200.0,91197.0,0.26319092]
[1731840763966,0.05463442,91200.0,91197.0,0.26319092]
[1731840764151,0.054822,91199.0,91198.0,0.01577464]
[1731840765861,0.25139423,91199.0,91198.0,0.01577464]
[1731840766066,0.10815921,91199.0,91198.0,0.01577464]
[1731840766460,0.30473144,91199.0,91198.0,0.01577464]
[1731840766772,0.10815921,91199.0,91198.0,0.01577464]
[1731840768256,0.30473144,91199.0,91198.0,0.01577464]
[1731840770274,0.10815921,91199.0,91198.0,0.01577464]
[1731840770568,0.054829,91187.0,91186.0,8.887e-05]
[1731840770759,0.46896621,91187.0,91186.0,8.887e-05]
[1731840771159,0.7203535,91187.0,91186.0,8.887e-05]
[1731840771367,0.72035069,91187.0,91186.0,8.887e-05]
[1731840771572,0.52360063,91187.0,91186.0,8.887e-05]
[1731840772969,0.47026342,91187.0,91186.0,0.19739197]
[1731840773169,0.47026342,91187.0,91186.0,8.887e-05]
[1731840775776,0.51717549,91187.0,91186.0,8.887e-05]
[1731840778673,0.47026342,91187.0,91186.0,8.887e-05]
[1731840779077,0.47026342,91187.0,91186.0,0.00694867]
[1731840779883,0.52360944,91187.0,91186.0,0.00694867]
[1731840780583,0.52360944,91187.0,91186.0,0.01243641]
[1731840780785,0.52360944,91187.0,91186.0,0.01243631]
[1731840781182,0.72029898,91187.0,91186.0,0.01243631]
[1731840781380,0.6655231,91187.0,91186.0,0.01243631]
[1731840781688,0.46897502,91187.0,91186.0,0.00557662]
[1731840782277,0.054836,91176.0,91174.0,0.00111947]
[1731840782482,0.054837,91174.0,91173.0,1.50056]
[1731840782788,0.054837,91174.0,91173.0,1.51029094]
[1731840782981,0.054837,91174.0,91173.0,0.01029064]
[1731840783573,0.054837,91174.0,91173.0,0.06492506]
[1731840784277,0.054837,91174.0,91173.0,0.11976306]
[1731840784473,0.054837,91174.0,91173.0,0.06512864]
[1731840785188,0.13106237,91174.0,91173.0,0.06512864]
[1731840785375,0.13106237,91177.0,91173.0,0.01029064]
[1731840785576,0.55819875,91187.0,91176.0,0.05463442]
[1731840785577,0.18589737,91178.0,91176.0,0.05463442]
[1731840785778,0.18589737,91178.0,91174.0,0.07339064]
[1731840785779,0.18589737,91178.0,91177.0,0.06492506]
[1731840786088,0.054835,91178.0,91177.0,0.06492416]
[1731840786775,0.054835,91178.0,91177.0,0.16829933]
[1731840787085,0.054835,91178.0,91177.0,1.66829933]
[1731840787288,0.18589737,91178.0,91177.0,1.66829933]
[1731840787782,0.054835,91178.0,91177.0,1.66829933]
[1731840788083,0.054835,91178.0,91177.0,1.75025933]
[1731840789185,0.054835,91178.0,91177.0,1.94756243]
[1731840789491,0.054835,91178.0,91177.0,1.94756236]
[1731840790287,0.054835,91178.0,91177.0,1.84418719]
[1731840790492,0.054835,91178.0,91177.0,1.78955277]
[1731840790687,0.054835,91178.0,91177.0,1.84418719]
[1731840791080,0.054835,91178.0,91177.0,0.34418719]
[1731840792289,0.054835,91178.0,91177.0,0.34967502]
[1731840792592,0.054835,91178.0,91177.0,0.39765024]
[1731840792793,0.054835,91178.0,91177.0,0.40451008]
[1731840793685,0.054835,91178.0,91177.0,0.20720698]
[1731840795495,0.21860464,91178.0,91177.0,0.20720698]
[1731840796296,0.054835,91178.0,91177.0,0.20720698]
[1731840797399,0.10818194,91178.0,91177.0,0.19142942]
[1731840797586,0.10818194,91178.0,91177.0,0.20720693]
[1731840799296,0.10818194,91178.0,91177.0,0.15237193]
[1731840799487,0.10818194,91178.0,91177.0,0.09773751]
[1731840800297,0.25135374,91178.0,91177.0,0.01577751]
[1731840800503,0.3593351,91178.0,91177.0,0.01577751]
[1731840800798,0.10818194,91178.0,91177.0,0.01689906]
[1731840801099,0.10818194,91178.0,91177.0,0.01577751]
[1731840801289,0.22175973,91178.0,91177.0,0.01577751]
[1731840801497,0.22185752,91178.0,91177.0,0.01689901]
[1731840801999,0.22185752,91178.0,91177.0,0.01577751]
[1731840803401,0.054835,91178.0,91177.0,0.01577751]
[1731840804097,0.054835,91178.0,91177.0,0.21315236]
[1731840804292,0.054835,91178.0,91177.0,0.01577751]
[1731840804687,0.054835,91178.0,91177.0,0.01577884]
[1731840805084,0.054835,91178.0,91177.0,0.00891847]
[1731840805503,0.054835,91178.0,91177.0,0.01577883]
[1731840805691,0.054835,91178.0,91177.0,0.00891847]
[1731840806297,0.054835,91178.0,91173.0,0.19738016]
[1731840806504,0.21888678,91178.0,91177.0,0.00891875]
[1731840806892,0.054835,91178.0,91177.0,0.00891875]
[1731840807091,0.21887993,91178.0,91177.0,0.00891875]
[1731840807292,0.054835,91178.0,91177.0,0.00891875]
[1731840807493,0.21888597,91178.0,91177.0,0.00891875]
[1731840809292,0.21888597,91178.0,91177.0,0.01577958]
[1731840809293,0.054835,91178.0,91177.0,0.01577958]
[1731840809689,0.21888597,91178.0,91177.0,0.01577958]
[1731840809891,0.054835,91178.0,91177.0,0.01577958]
[1731840810411,0.22189865,91178.0,91177.0,0.01577958]
[1731840812410,0.22189865,91178.0,91164.0,0.05473666]
[1731840812618,0.3608,91176.0,91175.0,0.00111506]
[1731840812816,0.46898986,91176.0,91175.0,0.01689463]
[1731840815111,0.46898986,91176.0,91175.0,0.01577957]
[1731840815313,0.46898986,91176.0,91175.0,0.01689463]
[1731840815813,0.054842,91166.0,91165.0,0.3608]
[1731840816112,0.054842,91166.0,91165.0,0.36628846]
[1731840816302,0.054842,91166.0,91165.0,0.37657938]
[1731840819306,0.054842,91166.0,91165.0,0.01577938]
[1731840820498,0.054842,91166.0,91165.0,0.27882003]
[1731840820900,0.054842,91166.0,91165.0,0.01577938]
[1731840822517,0.18599166,91166.0,91165.0,0.01577938]
[1731840822817,0.054842,91166.0,91165.0,0.01578113]
[1731840823021,0.415642,91166.0,91165.0,0.01578113]
[1731840824403,0.415642,91166.0,91165.0,0.00891977]
[1731840826018,0.054842,91165.0,91164.0,0.00010224]
[1731840826212,0.24052893,91165.0,91164.0,0.00902232]
[1731840826816,0.10947642,91165.0,91164.0,0.00902232]
[1731840827204,0.43855642,91165.0,91164.0,0.00902232]
[1731840827528,0.43855642,91165.0,91164.0,4e-08]
[1731840828313,0.43855642,91165.0,91142.0,0.031]
[1731840828314,0.054854,91146.0,91142.0,0.0321142]
[1731840828618,0.054855,91144.0,91143.0,0.01235201]
[1731840828803,0.10948942,91144.0,91143.0,0.01235201]
[1731840829114,0.05463442,91144.0,91140.0,1.5014]
[1731840829318,0.05463442,91144.0,91140.0,0.00084]
[1731840829319,0.415657,91141.0,91140.0,0.00084]
[1731840829519,0.415657,91141.0,91140.0,0.01319255]
[1731840830614,0.415657,91141.0,91140.0,0.00633002]
[1731840831317,0.415657,91141.0,91140.0,0.01319341]
[1731840832120,0.415657,91141.0,91140.0,0.01235341]
[1731840832319,0.3608,91141.0,91137.0,0.00013516]
[1731840832521,0.10949342,91138.0,91137.0,0.00013516]
[1731840832916,0.14089342,91138.0,91137.0,0.00013516]
[1731840833118,0.52468784,91138.0,91137.0,1.6e-07]
[1731840833318,0.55518784,91138.0,91137.0,1.6e-07]
[1731840833523,0.6085665,91138.0,91137.0,1.6e-07]
[1731840834024,0.80528191,91138.0,91118.0,0.0302]
[1731840834219,0.41567,91119.0,91118.0,0.0302]
[1731840834825,0.47030442,91119.0,91118.0,0.0302]
[1731840835529,0.41567,91119.0,91118.0,0.0302]
[1731840840316,0.054867,91124.0,91118.0,0.03363229]
[1731840840522,0.054867,91124.0,91119.0,0.00343229]
[1731840840712,0.3608,91130.0,91118.0,0.0302]
[1731840840713,0.054868,91123.0,91122.0,0.054868]
[1731840840922,0.054868,91123.0,91122.0,0.05830029]
[1731840841313,0.054868,91123.0,91122.0,0.05829995]
[1731840842517,0.054868,91123.0,91122.0,0.06379117]
[1731840842825,0.054868,91123.0,91122.0,1.56379117]
[1731840843615,0.3608,91130.0,91122.0,1.50892317]
[1731840843818,0.0051,91136.0,91133.0,0.05486]
[1731840843819,0.054861,91134.0,91133.0,0.05486]
[1731840844021,0.054861,91134.0,91133.0,0.05829195]
[1731840844417,0.054861,91134.0,91133.0,0.0637827]
[1731840845222,0.0051,91147.0,91133.0,0.0089227]
[1731840845531,0.054855,91144.0,91143.0,0.054855]
[1731840845830,0.054855,91144.0,91143.0,0.1456977]
[1731840846218,0.054855,91144.0,91143.0,1.6456977]
[1731840846421,0.054855,91144.0,91143.0,1.65255995]
[1731840847819,0.054855,91144.0,91143.0,1.65255825]
[1731840851432,0.054855,91144.0,91143.0,1.636775]
[1731840851736,0.054855,91144.0,91143.0,1.65255815]
[1731840854035,0.054855,91144.0,91143.0,1.64549783]
[1731840854236,0.054855,91144.0,91143.0,0.01578315]
[1731840854933,0.13069852,91149.0,91134.0,0.0311]
[1731840855124,0.13069852,91149.0,91135.0,0.01578394]
[1731840855125,0.05486,91136.0,91135.0,0.01578394]
[1731840855525,0.1082338,91136.0,91135.0,0.00892134]
[1731840855731,0.1082338,91136.0,91135.0,0.01578459]
[1731840856733,0.1082338,91136.0,91135.0,0.00892134]
[1731840857032,0.22363787,91136.0,91135.0,0.00279358]
[1731840858230,0.2239463,91136.0,91135.0,0.00279358]
[1731840858432,0.054869,91121.0,91120.0,0.0301]
[1731840860540,0.054871,91118.0,91113.0,0.08184]
[1731840860742,0.05337973,91117.0,91113.0,0.08184]
[1731840861037,0.21857178,91118.0,91106.0,1.8608]
[1731840861237,0.05338334,91117.0,91101.0,0.0325]
[1731840861451,0.054871,91118.0,91110.0,0.26304065]
[1731840861643,0.054871,91118.0,91115.0,0.19696615]
[1731840861835,0.054871,91118.0,91114.0,0.19696615]
[1731840862230,0.054871,91118.0,91113.0,0.19696615]
[1731840862231,0.32924,91117.0,91113.0,0.19696615]
[1731840862430,0.32924,91117.0,91105.0,0.19696615]
[1731840862938,0.32924,91117.0,91104.0,0.19696615]
[1731840863136,0.32924,91117.0,91116.0,9.1e-07]
[1731840863940,0.41112,91117.0,91116.0,9.1e-07]
[1731840864337,0.32924,91117.0,91116.0,9.1e-07]
[1731840864531,0.054871,91118.0,91116.0,9.1e-07]
[1731840865949,0.32924,91117.0,91116.0,9.1e-07]
[1731840866240,0.32924,91117.0,91115.0,0.1932251]
[1731840866445,0.32924,91117.0,91102.0,0.32896573]
[1731840866446,0.32924,91116.0,91101.0,0.32896573]
[1731840866631,0.05488,91102.0,91100.0,0.1]
[1731840866831,0.3608,91105.0,91100.0,0.1]
[1731840867739,0.05488,91102.0,91100.0,0.1]
[1731840869035,0.05488,91102.0,91101.0,0.00343307]
[1731840869634,0.05488,91102.0,91101.0,0.00892594]
[1731840871241,0.05488,91102.0,91100.0,0.1]
[1731840871452,0.05488,91102.0,91101.0,0.00892604]
[1731840871754,0.05488,91102.0,91101.0,0.00892602]
[1731840873038,0.05501492,91102.0,91101.0,0.00343308]
[1731840876037,0.05501492,91102.0,91101.0,0.19986019]
[1731840876361,0.05501492,91102.0,91101.0,0.00343308]
[1731840877841,0.05501492,91102.0,91100.0,0.1]
[1731840878457,0.18511425,91103.0,91100.0,0.1]
[1731840878751,0.05488,91102.0,91100.0,0.1]
[1731840879566,0.00011971,91101.0,91100.0,0.1]
[1731840879861,0.03281971,91101.0,91100.0,0.1]
[1731840883858,0.03281971,91101.0,91086.0,0.32720242]
[1731840883859,0.11469971,91101.0,91086.0,0.32720242]
[1731840884061,0.3608,91092.0,91087.0,0.00343363]
[1731840884257,0.054891,91085.0,91083.0,0.32720242]
[1731840884555,0.054891,91085.0,91084.0,0.4773836]
[1731840884748,0.054891,91085.0,91084.0,0.80537545]
[1731840884943,0.054891,91085.0,91084.0,0.00343366]
[1731840885148,0.054891,91085.0,91083.0,0.32799185]
[1731840885350,0.054891,91085.0,91084.0,0.00343378]
[1731840888156,0.10224647,91085.0,91084.0,0.00343378]
[1731840890860,0.43160647,91085.0,91084.0,0.00892812]
[1731840891963,0.43160647,91085.0,91084.0,0.00343378]
[1731840892660,0.10224647,91085.0,91084.0,0.00343378]
[1731840892857,0.43160647,91085.0,91084.0,0.00343378]
[1731840893165,0.10224647,91085.0,91084.0,0.00343378]
[1731840895657,0.054891,91085.0,91084.0,0.00343378]
[1731840895958,0.054891,91085.0,91084.0,0.47748303]
[1731840896359,0.054891,91085.0,91084.0,1.97748303]
[1731840896971,0.054891,91085.0,91084.0,0.80611967]
[1731840897171,0.054891,91085.0,91084.0,0.00343378]
[1731840897463,0.3608,91088.0,91084.0,0.00343395]
[1731840897664,0.3608,91088.0,91083.0,0.32863664]
[1731840897972,0.3608,91088.0,91075.0,0.3926429]
[1731840897973,0.054891,91084.0,91075.0,0.3926429]
[1731840898270,0.054891,91084.0,91083.0,0.32864751]
[1731840898455,0.054891,91084.0,91083.0,0.80591513]
[1731840898663,0.054891,91084.0,91083.0,0.00343392]
[1731840899064,0.054891,91084.0,91083.0,0.00892828]
[1731840899864,0.054891,91084.0,91083.0,0.00343392]
[1731840900667,0.054891,91084.0,91076.0,0.32864751]
[1731840900668,0.054895,91077.0,91076.0,0.32864751]
[1731840900973,0.415695,91077.0,91076.0,0.00892909]
[1731840901468,0.415695,91077.0,91076.0,0.00343426]
[1731840902071,0.415695,91077.0,91076.0,0.00892911]
[1731840902270,0.3608,91077.0,91076.0,0.00892911]
[1731840902473,0.446195,91077.0,91076.0,0.00892911]
[1731840902770,0.446195,91077.0,91076.0,0.00343427]
[1731840902972,0.054898,91073.0,91072.0,0.32876237]
[1731840903172,0.054898,91073.0,91072.0,0.33769155]
[1731840903366,0.054898,91073.0,91072.0,0.32876237]
[1731840903568,0.054898,91073.0,91072.0,0.33769153]
[1731840903867,0.054898,91073.0,91072.0,0.48104197]
[1731840904070,0.054898,91073.0,91072.0,0.80966757]
[1731840904466,0.054898,91073.0,91072.0,0.33766962]
[1731840904667,0.054898,91073.0,91072.0,0.80961263]
[1731840904870,0.054898,91073.0,91072.0,0.33766962]
[1731840905373,0.054898,91073.0,91072.0,0.00904402]
[1731840906265,0.054898,91073.0,91072.0,0.33423534]
[1731840906464,0.054898,91073.0,91072.0,0.00904404]
[1731840906665,0.054898,91073.0,91072.0,0.33766964]
[1731840907580,0.054898,91073.0,91072.0,0.00904404]
[1731840911970,0.136778,91073.0,91072.0,0.00904404]
[1731840913387,0.136778,91073.0,91072.0,0.00904412]
[1731840914081,0.136778,91073.0,91072.0,0.00354919]
[1731840915480,0.054904,91062.0,91061.0,0.0635]
[1731840915687,0.054904,91062.0,91061.0,0.06899501]
[1731840919183,0.10258832,91062.0,91061.0,0.06899501]
[1731840919975,0.81980432,91062.0,91040.0,0.00109859]
[1731840920175,0.7216,91041.0,91016.0,0.0010983]
[1731840920400,0.054932,91017.0,90896.0,1.1704]
[1731840920691,0.054932,91017.0,72412.0,0.00011]
[1731840920692,0.3608,90986.0,90967.0,0.3608]
[1731840920990,0.03890986,90985.0,90968.0,1.03219362]
[1731840921188,0.05508886,90983.0,90982.0,8.462e-05]
[1731840921485,0.05508886,90983.0,90961.0,1.52262092]
[1731840921486,0.1065141,90983.0,90981.0,0.1968123]
[1731840921796,0.06473558,90986.0,90975.0,0.19677653]
[1731840922096,0.054955,90979.0,90974.0,0.19677653]
[1731840922286,0.06473558,90986.0,90972.0,0.19677653]
[1731840922287,0.054957,90976.0,90972.0,0.19677653]
[1731840922584,0.054958,90973.0,90972.0,7.95e-05]
[1731840923592,0.00012622,90978.0,90972.0,7.95e-05]
[1731840923785,0.01692713,90974.0,90972.0,7.95e-05]
[1731840923980,0.01692713,90976.0,90972.0,7.95e-05]
[1731840924483,0.00012622,90978.0,90975.0,0.3608]
[1731840925185,0.00012622,90978.0,90977.0,1.5]
[1731840925388,0.00012622,90978.0,90977.0,1.949]
[1731840925688,0.00012622,90978.0,90977.0,1.94905407]
[1731840926294,0.00012622,90978.0,90977.0,1.86085407]
[1731840926490,0.00164948,90992.0,90977.0,1.86085407]
[1731840926491,0.00164948,90992.0,90981.0,0.054953]
[1731840926690,0.00164948,90992.0,90987.0,0.3608]
[1731840927380,0.00179048,90992.0,90988.0,0.0304]
[1731840927582,0.00179048,90992.0,90989.0,0.08824]
[1731840927883,0.00164933,91022.0,90989.0,0.08824]
[1731840927884,0.054942,91000.0,90991.0,0.054947]
[1731840928087,0.054942,91000.0,90989.0,0.08824]
[1731840928088,0.054942,91000.0,90999.0,0.3608]
[1731840928388,0.054939,91005.0,90999.0,0.3608]
[1731840928690,0.054939,91005.0,90999.0,1.8608]
[1731840928895,0.0001288,91004.0,90999.0,1.8608]
[1731840929393,0.0001288,91004.0,91000.0,0.32968]
[1731840929600,0.0001288,91004.0,91002.0,0.05494]
[1731840929893,0.3911,91050.0,91003.0,0.3934]
[1731840930099,0.054929,91022.0,91012.0,0.054934]
[1731840930291,0.054929,91022.0,91021.0,0.7216]
[1731840930491,0.054929,91022.0,91021.0,2.2216]
[1731840930880,0.05501981,91022.0,91021.0,2.2216]
[1731840931186,0.05501981,91022.0,91021.0,2.30984]
[1731840932494,0.05501981,91022.0,91021.0,0.80984]
[1731840933689,9.081e-05,91022.0,91021.0,0.864769]
[1731840934286,0.054913,91048.0,91028.0,0.054925]
[1731840934484,0.054916,91042.0,91041.0,0.3608]
[1731840935391,0.05502844,91042.0,91041.0,0.3608]
[1731840948300,0.054919,91038.0,91037.0,0.00014171]
[1731840948494,0.054919,91038.0,91023.0,0.3608]
[1731840948495,0.054927,91024.0,91023.0,0.3608]
[1731840952001,0.054927,91024.0,91023.0,0.44612]
[1731840952706,0.060024,91030.0,91026.0,0.054926]
[1731840952904,0.0051,91030.0,91029.0,0.415724]
[1731840953102,0.0333,91036.0,91034.0,0.054921]
[1731840953103,0.0051,91036.0,91034.0,0.054921]
[1731840953301,0.0051,91036.0,91035.0,0.44612]
[1731840953302,0.04854826,91036.0,91035.0,0.44612]
[1731840953599,0.05492,91037.0,91036.0,0.05492]
[1731840953798,0.04818698,91037.0,91035.0,0.44612]
[1731840953995,0.054918,91039.0,91036.0,0.05492]
[1731840954300,0.054919,91038.0,91037.0,0.19677653]
[1731840954696,0.054919,91038.0,91036.0,0.19677653]
[1731840955009,0.054919,91038.0,91036.0,0.05492]
[1731840955208,0.054919,91038.0,91036.0,0.25169653]
[1731840955390,0.054919,91038.0,91036.0,0.05492]
[1731840955594,0.05356745,91041.0,91035.0,0.3608]
[1731840955595,0.05356745,91041.0,91040.0,0.054918]
[1731840955910,0.10338445,91041.0,91040.0,0.25185128]
[1731840956412,0.10338445,91041.0,91040.0,0.054918]
[1731840957297,0.04846745,91041.0,91040.0,0.31551611]
[1731840957507,0.00011244,91042.0,91040.0,0.31551611]
[1731840957702,0.00011244,91042.0,91040.0,0.054918]
[1731840958804,0.00011244,91042.0,91040.0,0.38238534]
[1731840959002,0.00011244,91042.0,91041.0,0.4307851]
[1731840960203,0.00011244,91042.0,91041.0,0.42939129]
[1731840960600,0.05502844,91042.0,91041.0,0.51471129]
[1731840960904,0.05502844,91042.0,91041.0,0.08532]
[1731840961114,0.00011244,91042.0,91041.0,0.08532]
[1731840962497,0.00011244,91042.0,91041.0,1.58532]
[1731840962800,0.00011244,91042.0,91041.0,1.84849007]
[1731840962996,0.00011244,91042.0,91041.0,1.58532]
[1731840963200,0.00011244,91042.0,91041.0,1.969757]
[1731840963810,0.0051,91047.0,91046.0,0.054914]
[1731840964006,0.054907,91059.0,91051.0,0.054911]
[1731840964007,0.0051,91052.0,91051.0,0.054911]
[1731840964198,0.0051,91058.0,91057.0,0.054907]
[1731840964396,0.054905,91061.0,91057.0,0.3608]
[1731840964701,0.054907,91058.0,91057.0,0.415707]
[1731840965198,0.054907,91058.0,91057.0,0.3608]
[1731840965802,0.00012198,91060.0,91058.0,0.054907]
[1731840967919,0.032,91073.0,91059.0,0.42584081]
[1731840968103,0.054898,91074.0,91072.0,0.7216]
[1731840968302,0.054898,91074.0,91072.0,0.80692]
[1731840968513,0.054898,91074.0,91072.0,0.861818]
[1731840968811,0.1100941,91074.0,91072.0,0.861818]
[1731840969017,0.0314,91082.0,91072.0,0.861818]
[1731840969018,0.00010633,91073.0,91072.0,0.861818]
[1731840971020,0.0332,91089.0,91072.0,0.861818]
[1731840971021,0.088089,91089.0,91072.0,1.28606511]
[1731840971320,0.088089,91089.0,91083.0,0.415692]
[1731840971516,0.0332,91089.0,91083.0,2.001012]
[1731840971820,0.054882,91099.0,91092.0,0.054886]
[1731840972120,0.00011808,91095.0,91092.0,0.4157784]
[1731840973218,0.00011808,91095.0,91092.0,0.4460784]
[1731840973413,0.00011808,91095.0,91092.0,0.7753984]
[1731840973620,0.1,91100.0,91099.0,0.054882]
[1731840973920,0.1,91100.0,91099.0,0.500962]
[1731840974827,0.1,91100.0,91099.0,2.000962]
[1731840976930,0.00013605,91107.0,91106.0,0.054878]
[1731840977239,0.054868,91122.0,91121.0,0.054869]
[1731840977440,0.054868,91122.0,91121.0,0.861749]
[1731840978432,0.054868,91122.0,91121.0,0.7216]
[1731840978740,0.054874,91113.0,91112.0,0.3608]
[1731840980755,0.054871,91118.0,91115.0,0.054872]
[1731840980937,0.054871,91118.0,91116.0,0.3608]
[1731840983248,0.00012264,91123.0,91116.0,0.3608]
[1731840983443,0.00012264,91123.0,91122.0,0.3608]
[1731840983638,0.00012264,91123.0,91122.0,0.44976]
[1731840986342,0.00012264,91123.0,91122.0,0.3608]
[1731840986538,0.054872,91115.0,91114.0,0.44976]
[1731840987547,0.06668029,91115.0,91114.0,0.44976]
[1731840987953,0.054872,91115.0,91114.0,0.44976]
[1731840988639,0.054872,91115.0,91114.0,0.3608]
[1731840990340,0.054878,91106.0,91105.0,0.3608]
[1731840992847,0.054878,91106.0,91100.0,0.3608]
[1731840992848,0.054881,91101.0,91100.0,0.3608]
[1731840999552,0.054886,91093.0,91092.0,9.24e-05]
[1731841002753,0.054886,91093.0,91092.0,0.3608924]
[1731841005546,0.0051,91098.0,91092.0,0.3608924]
[1731841005748,0.0051,91098.0,91097.0,0.054883]
[1731841005950,0.054883,91098.0,91097.0,0.054883]
[1731841006247,0.054883,91098.0,91097.0,1.98865631]
[1731841006446,0.054883,91098.0,91097.0,0.81687789]
[1731841006650,0.054883,91098.0,91097.0,0.48865631]
[1731841007056,0.0051,91103.0,91097.0,0.48865631]
[1731841007350,0.0051,91103.0,91102.0,0.3608]
[1731841007651,0.05488,91103.0,91102.0,0.3608]
[1731841008551,0.05488,91103.0,91102.0,0.41568]
[1731841009148,0.0051,91108.0,91107.0,0.054877]
[1731841009354,0.0051,91108.0,91102.0,1.12047615]
[1731841009355,0.054876,91109.0,91108.0,0.054877]
[1731841010554,0.054876,91109.0,91108.0,0.38315976]
[1731841011650,0.054876,91109.0,91108.0,0.81431348]
[1731841012159,0.054876,91109.0,91108.0,0.48603072]
[1731841012358,0.054876,91109.0,91108.0,0.81493355]
[1731841012548,0.0051,91113.0,91112.0,0.054874]
[1731841012744,0.054873,91115.0,91114.0,0.054873]
[1731841013054,0.0051,91118.0,91114.0,0.054873]
[1731841013262,0.0051,91118.0,91115.0,0.3608]
[1731841013562,0.0051,91118.0,91117.0,0.054871]
[1731841013755,0.00164685,91120.0,91119.0,0.05487]
[1731841017055,0.00164685,91120.0,91117.0,0.0868]
[1731841017056,0.00522264,91123.0,91122.0,0.054868]
[1731841017252,0.00012264,91123.0,91122.0,0.415668]
[1731841017653,0.00012264,91123.0,91122.0,1.915668]
[1731841017852,0.0051,91128.0,91122.0,1.8608]
[1731841018062,0.0051,91128.0,91127.0,0.415665]
[1731841018250,0.0051,91133.0,91132.0,0.054862]
[1731841018470,0.13045526,91135.0,91133.0,0.054861]
[1731841018968,0.00010873,91135.0,91133.0,0.054861]
[1731841019356,0.05496973,91135.0,91133.0,0.054861]
[1731841020559,0.00010873,91135.0,91133.0,0.054861]
[1731841020765,0.054861,91134.0,91133.0,0.054861]
[1731841021266,0.054861,91134.0,91133.0,0.085061]
[1731841026467,0.00010873,91135.0,91134.0,0.054861]
[1731841031575,0.00010873,91135.0,91134.0,0.384061]
[1731841031776,0.0051,91138.0,91137.0,0.054859]
[1731841031972,0.0051,91138.0,91137.0,0.415659]
[1731841032670,0.0051,91138.0,91137.0,0.744819]
[1731841032869,0.0051,91138.0,91137.0,2.244819]
[1731841033766,0.0051,91138.0,91137.0,2.44180443]
[1731841034169,0.0051,91138.0,91137.0,2.244819]
[1731841034366,0.0001388,91148.0,91147.0,0.054853]
[1731841034573,0.0001388,91148.0,91147.0,0.502413]
[1731841038879,0.0001388,91148.0,91147.0,0.55842188]
[1731841040980,0.0001388,91148.0,91147.0,0.55853722]
[1731841043176,0.0001388,91148.0,91147.0,0.47177722]
[1731841043373,0.0001388,91148.0,91147.0,0.55593722]
[1731841043677,0.0001388,91148.0,91147.0,0.47177722]
[1731841044177,0.0001388,91148.0,91147.0,0.55593722]
[1731841046979,0.0001388,91148.0,91147.0,0.88423123]
[1731841047278,0.0001388,91148.0,91147.0,0.55593722]
[1731841047481,0.0001388,91148.0,91147.0,0.88423123]
[1731841047781,0.0001388,91148.0,91147.0,1.31026225]
[1731841047984,0.0001388,91148.0,91147.0,0.88423123]
[1731841048185,0.0001388,91148.0,91147.0,1.31025919]
[1731841048492,0.0001388,91148.0,91147.0,0.98196618]
[1731841048983,0.0001388,91148.0,91147.0,1.31024707]
[1731841049178,0.0001388,91148.0,91147.0,1.31025347]
[1731841049373,0.0001388,91148.0,91147.0,0.98196618]
[1731841051386,0.0001388,91148.0,91147.0,0.75293789]
[1731841052186,0.0001388,91148.0,91147.0,0.55593722]
[1731841052377,0.0001388,91148.0,91147.0,0.75293789]
[1731841052675,0.0001388,91148.0,91147.0,0.75289789]
[1731841053780,0.0001388,91148.0,91147.0,0.55589722]
[1731841053986,0.0001388,91148.0,91147.0,0.75297929]
[1731841054281,0.0001388,91148.0,91147.0,0.55589722]
[1731841054877,0.0001388,91148.0,91147.0,0.41692422]
[1731841055087,0.0001388,91148.0,91147.0,0.31101534]
[1731841055277,0.0620388,91148.0,91147.0,0.31101534]
[1731841055578,0.0620388,91148.0,91147.0,0.26111534]
[1731841055780,0.0620388,91148.0,91147.0,0.16131534]
[1731841055975,0.22510788,91148.0,91147.0,0.16131534]
[1731841056170,0.0620388,91148.0,91147.0,0.16131534]
[1731841056780,0.22593676,91148.0,91147.0,0.16131534]
[1731841057179,0.0620388,91148.0,91147.0,0.16131534]
[1731841057688,0.12926082,91148.0,91147.0,0.16131534]
[1731841057879,0.07348229,91148.0,91147.0,0.16131534]
[1731841058074,0.04238229,91148.0,91147.0,0.16131534]
[1731841058281,0.0309388,91148.0,91147.0,0.16131534]
[1731841059278,0.0001388,91148.0,91147.0,0.16131534]
[1731841059881,0.0001388,91148.0,91147.0,0.21616834]
[1731841061791,0.0001388,91148.0,91147.0,0.64003074]
[1731841061990,0.0001388,91148.0,91147.0,2.14003074]
[1731841062302,0.0001388,91148.0,91147.0,2.19397258]
[1731841062794,0.0011116,91148.0,91147.0,2.19397258]
[1731841063086,0.0011116,91148.0,91147.0,2.13911958]
[1731841063287,0.0559646,91148.0,91147.0,2.08517774]
[1731841063500,0.0559646,91148.0,91147.0,0.91402392]